[Event "Open Nuevo Centro. Jornada 2"]
[Site "Chess.com"]
[Date "2020.06.26"]
[Round "1"]
[White "Gómez Alonso, Óscar"]
[Black "Martínez Albelda, Mariela"]
[Result "1-0"]
[WhiteElo "1859"]
[BlackElo "1004"]
[TimeControl "180+2"]
[EndTime "10:36:44 PDT"]
[Termination "Victoria de osgo78 por jaque mate"]

1. d4 {[%clk 0:03:00]} 1... d5 {[%clk 0:02:59.5]} 2. c4 {[%clk 0:03:00.8]} 2...
e6 {[%clk 0:02:59]} 3. Nc3 {[%clk 0:03:00.7]} 3... Nf6 {[%clk 0:02:58.6]} 4. Nf3
{[%clk 0:03:00.8]} 4... Nc6 {[%clk 0:02:58.6]} 5. Bf4 {[%clk 0:03:00.7]} 5...
Bb4 {[%clk 0:02:57.1]} 6. e3 {[%clk 0:02:56.3]} 6... Bxc3+ {[%clk 0:02:56.5]} 7.
bxc3 {[%clk 0:02:57.1]} 7... Bd7 {[%clk 0:02:52.9]} 8. Qc2 {[%clk 0:02:55]} 8...
O-O {[%clk 0:02:52.6]} 9. Ne5 {[%clk 0:02:55.1]} 9... Nxe5 {[%clk 0:02:51.5]}
10. Bxe5 {[%clk 0:02:55.9]} 10... c6 {[%clk 0:02:41]} 11. c5 {[%clk 0:02:55]}
11... b6 {[%clk 0:02:37.4]} 12. cxb6 {[%clk 0:02:55.4]} 12... axb6 {[%clk
0:02:37.7]} 13. Bd3 {[%clk 0:02:56.3]} 13... Qe7 {[%clk 0:02:32.2]} 14. Bxf6
{[%clk 0:02:49.5]} 14... Qxf6 {[%clk 0:02:29.1]} 15. Bxh7+ {[%clk 0:02:50.1]}
15... Kh8 {[%clk 0:02:28]} 16. Bd3 {[%clk 0:02:50.8]} 16... g6 {[%clk
0:02:20.6]} 17. c4 {[%clk 0:02:42.2]} 17... dxc4 {[%clk 0:02:20.4]} 18. Bxc4
{[%clk 0:02:40.6]} 18... b5 {[%clk 0:02:21.2]} 19. Be2 {[%clk 0:02:41]} 19...
Qg5 {[%clk 0:02:21.4]} 20. Bf3 {[%clk 0:02:39.8]} 20... e5 {[%clk 0:02:19]} 21.
dxe5 {[%clk 0:02:36.3]} 21... Qxe5 {[%clk 0:02:19.5]} 22. O-O {[%clk 0:02:35.1]}
22... Kg7 {[%clk 0:02:16.6]} 23. Qe4 {[%clk 0:02:32.1]} 23... Qd6 {[%clk
0:02:12.7]} 24. Rfd1 {[%clk 0:02:29.7]} 24... Qc7 {[%clk 0:02:09.4]} 25. Qd4+
{[%clk 0:02:29.1]} 25... f6 {[%clk 0:01:50.6]} 26. Qxd7+ {[%clk 0:02:28.8]}
26... Qxd7 {[%clk 0:01:51.6]} 27. Rxd7+ {[%clk 0:02:30.4]} 27... Kg8 {[%clk
0:01:49.7]} 28. Bxc6 {[%clk 0:02:29.9]} 28... Rad8 {[%clk 0:01:48.6]} 29. Rxd8
{[%clk 0:02:30.5]} 29... Rxd8 {[%clk 0:01:49.3]} 30. Bxb5 {[%clk 0:02:31.3]}
30... Rd5 {[%clk 0:01:48.4]} 31. a4 {[%clk 0:02:31.7]} 31... Rd8 {[%clk
0:01:46.6]} 32. h3 {[%clk 0:02:32.3]} 32... Ra8 {[%clk 0:01:47.2]} 33. a5 {[%clk
0:02:33.1]} 33... Kh7 {[%clk 0:01:48]} 34. a6 {[%clk 0:02:33.9]} 34... Kh6
{[%clk 0:01:48.4]} 35. a7 {[%clk 0:02:34.3]} 35... g5 {[%clk 0:01:21.6]} 36. Bc6
{[%clk 0:02:34.5]} 36... Rc8 {[%clk 0:01:21]} 37. a8=Q {[%clk 0:02:33.4]} 37...
Rxa8 {[%clk 0:01:21.7]} 38. Rxa8 {[%clk 0:02:33.9]} 38... Kh5 {[%clk 0:01:21.9]}
39. Bf3+ {[%clk 0:02:34.1]} 39... Kg6 {[%clk 0:01:22.4]} 40. Rg8+ {[%clk
0:02:33.7]} 40... Kf5 {[%clk 0:01:23.1]} 41. h4 {[%clk 0:02:32.9]} 41... gxh4
{[%clk 0:01:21.4]} 42. Rg4 {[%clk 0:02:33.3]} 42... Ke5 {[%clk 0:01:17.5]} 43.
Rxh4 {[%clk 0:02:34.2]} 43... f5 {[%clk 0:01:17.1]} 44. Rf4 {[%clk 0:02:34.6]}
44... Kf6 {[%clk 0:01:16]} 45. g4 {[%clk 0:02:35.3]} 45... Kg6 {[%clk
0:01:14.6]} 46. Rxf5 {[%clk 0:02:35.2]} 46... Kg7 {[%clk 0:01:12.3]} 47. e4
{[%clk 0:02:36.3]} 47... Kg8 {[%clk 0:01:12.7]} 48. e5 {[%clk 0:02:37.3]} 48...
Kg7 {[%clk 0:01:13.8]} 49. e6 {[%clk 0:02:38.3]} 49... Kg6 {[%clk 0:01:14.9]}
50. e7 {[%clk 0:02:39.2]} 50... Kg7 {[%clk 0:01:15.8]} 51. e8=R {[%clk 0:02:37]}
51... Kh7 {[%clk 0:01:16.1]} 52. Ra5 {[%clk 0:02:37.5]} 52... Kg7 {[%clk
0:01:16.5]} 53. Rb8 {[%clk 0:02:38.7]} 53... Kf7 {[%clk 0:01:17.1]} 54. Ra6
{[%clk 0:02:39.8]} 54... Ke7 {[%clk 0:01:17]} 55. Rb7+ {[%clk 0:02:40.9]} 55...
Kd8 {[%clk 0:01:16.7]} 56. Ra8# {[%clk 0:02:42.8]} 1

[Event "Open Nuevo Centro. Jornada 2"]
[Site "Chess.com"]
[Date "2020.06.26"]
[Round "1"]
[White "Valero Martinez, Óscar"]
[Black "Casado Andreu, David"]
[Result "0-1"]
[WhiteElo "399"]
[BlackElo "1644"]
[TimeControl "180+2"]
[EndTime "10:36:44 PDT"]
[Termination "Victoria de dave6635 por tiempo"]

1. e4 {[%clk 0:02:58.9]} 1... e5 {[%clk 0:02:59.6]} 2. Nf3 {[%clk 0:02:58.5]}
2... Nc6 {[%clk 0:02:52.9]} 3. Nc3 {[%clk 0:02:52.2]} 3... Nf6 {[%clk 0:02:53]}
4. Bc4 {[%clk 0:02:50.2]} 4... Nxe4 {[%clk 0:02:53.1]} 5. Nxe4 {[%clk
0:02:40.8]} 5... d5 {[%clk 0:02:53.6]} 6. Bd3 {[%clk 0:02:08]} 6... dxe4 {[%clk
0:02:53.5]} 7. Bxe4 {[%clk 0:02:09.3]} 7... Bd6 {[%clk 0:02:54.1]} 8. d3 {[%clk
0:02:06]} 8... Bg4 {[%clk 0:02:51.4]} 9. h3 {[%clk 0:02:02.8]} 9... Bh5 {[%clk
0:02:51.7]} 10. Bg5 {[%clk 0:01:53.9]} 10... Be7 {[%clk 0:02:48.2]} 11. Qd2
{[%clk 0:01:39.5]} 11... Bxf3 {[%clk 0:02:47]} 12. Bxf3 {[%clk 0:01:38.7]} 12...
Bxg5 {[%clk 0:02:47.6]} 13. Qc3 {[%clk 0:01:35.1]} 13... O-O {[%clk 0:02:36.6]}
14. O-O {[%clk 0:01:30.8]} 14... Nd4 {[%clk 0:02:27.9]} 15. Rac1 {[%clk
0:01:21.2]} 15... Bxc1 {[%clk 0:02:20.7]} 16. Rxc1 {[%clk 0:01:17.7]} 16... f5
{[%clk 0:02:21.2]} 17. Qc5 {[%clk 0:01:05.3]} 17... Nxf3+ {[%clk 0:02:19]} 18.
gxf3 {[%clk 0:01:02.1]} 18... Qd6 {[%clk 0:02:19.5]} 19. Qc4+ {[%clk 0:00:57.7]}
19... Kh8 {[%clk 0:02:19.6]} 20. Re1 {[%clk 0:00:56.5]} 20... Qg6+ {[%clk
0:02:19.8]} 21. Kf1 {[%clk 0:00:57.5]} 21... Rfe8 {[%clk 0:02:13.4]} 22. Qxc7
{[%clk 0:00:51.9]} 22... Rac8 {[%clk 0:02:10.3]} 23. Qxb7 {[%clk 0:00:50.8]}
23... Rxc2 {[%clk 0:01:55.2]} 24. Re2 {[%clk 0:00:15.5]} 24... Rxe2 {[%clk
0:01:55.3]} 25. Kxe2 {[%clk 0:00:15.6]} 25... Qb6 {[%clk 0:01:55.2]} 26. Qf7
{[%clk 0:00:10.8]} 26... Qxb2+ {[%clk 0:01:55.1]} 27. Ke3 {[%clk 0:00:11.4]}
27... Qd4+ {[%clk 0:01:53.5]} 28. Kd2 {[%clk 0:00:11.4]} 28... Rb8 {[%clk
0:01:53.4]} 0

[Event "Open Nuevo Centro. Jornada 2"]
[Site "Chess.com"]
[Date "2020.06.26"]
[Round "1"]
[White "Denis Cazacu, Ioan"]
[Black "Garcia, Jhoel"]
[Result "0-1"]
[WhiteElo "1398"]
[BlackElo "2302"]
[TimeControl "180+2"]
[EndTime "10:36:45 PDT"]
[Termination "Victoria de shoels por jaque mate"]

1. d4 {[%clk 0:03:01.4]} 1... Nf6 {[%clk 0:02:59.6]} 2. c4 {[%clk 0:03:02.7]}
2... g6 {[%clk 0:03:01.2]} 3. Nc3 {[%clk 0:03:03.7]} 3... Bg7 {[%clk 0:03:02.9]}
4. Nf3 {[%clk 0:03:03.8]} 4... d6 {[%clk 0:03:03.1]} 5. Bg5 {[%clk 0:03:02.8]}
5... Bg4 {[%clk 0:02:58.4]} 6. e3 {[%clk 0:02:59.4]} 6... h6 {[%clk 0:02:58.9]}
7. Bh4 {[%clk 0:02:59.7]} 7... Nbd7 {[%clk 0:03:00]} 8. h3 {[%clk 0:03:00.1]}
8... Bxf3 {[%clk 0:03:00.3]} 9. Qxf3 {[%clk 0:03:00]} 9... c6 {[%clk 0:03:01.8]}
10. Bd3 {[%clk 0:02:54.8]} 10... Qa5 {[%clk 0:03:00.5]} 11. O-O {[%clk
0:02:53.3]} 11... O-O {[%clk 0:03:01.6]} 12. Ne4 {[%clk 0:02:47.7]} 12... Nxe4
{[%clk 0:02:47.8]} 13. Qxe4 {[%clk 0:02:33.1]} 13... Rae8 {[%clk 0:02:47.4]} 14.
f4 {[%clk 0:02:25.8]} 14... f5 {[%clk 0:02:41.2]} 15. Qf3 {[%clk 0:02:21.2]}
15... e5 {[%clk 0:02:42.6]} 16. Be1 {[%clk 0:02:17.2]} 16... Qb6 {[%clk
0:02:39.4]} 17. fxe5 {[%clk 0:02:04.6]} 17... dxe5 {[%clk 0:02:39.8]} 18. Qg3
{[%clk 0:01:39.1]} 18... e4 {[%clk 0:02:21.2]} 19. Be2 {[%clk 0:01:34.6]} 19...
Qxb2 {[%clk 0:02:21.2]} 20. Qxg6 {[%clk 0:00:46.9]} 20... Qxe2 {[%clk
0:02:04.5]} 21. Bb4 {[%clk 0:00:43.6]} 21... Qxe3+ {[%clk 0:02:03.4]} 22. Kh1
{[%clk 0:00:41.7]} 22... c5 {[%clk 0:02:01.1]} 23. dxc5 {[%clk 0:00:39]} 23...
Qg5 {[%clk 0:01:57.3]} 24. Qxg5 {[%clk 0:00:32.7]} 24... hxg5 {[%clk 0:01:57.9]}
25. c6 {[%clk 0:00:29.7]} 25... bxc6 {[%clk 0:01:57.8]} 26. Bxf8 {[%clk
0:00:28.9]} 26... Bxa1 {[%clk 0:01:59.1]} 27. Rxa1 {[%clk 0:00:16.7]} 27... Rxf8
{[%clk 0:01:57.6]} 28. Rd1 {[%clk 0:00:16.9]} 28... Ne5 {[%clk 0:01:57.7]} 29.
Rd6 {[%clk 0:00:16.4]} 29... Re8 {[%clk 0:01:54.5]} 30. Rh6 {[%clk 0:00:16.4]}
30... e3 {[%clk 0:01:54.9]} 31. Kg1 {[%clk 0:00:16.9]} 31... Nf3+ {[%clk
0:01:53.6]} 32. Kf1 {[%clk 0:00:17.8]} 32... e2+ {[%clk 0:01:54.4]} 33. Kf2
{[%clk 0:00:18.6]} 33... e1=Q+ {[%clk 0:01:53.5]} 34. Kxf3 {[%clk 0:00:20.2]}
34... Qe3# {[%clk 0:01:53.5]} 0

[Event "Open Nuevo Centro. Jornada 2"]
[Site "Chess.com"]
[Date "2020.06.26"]
[Round "1"]
[White "Aymerich Rosell, Pablo"]
[Black "SIMARRO PEIRÓ, ANDRÉS"]
[Result "1-0"]
[WhiteElo "2008"]
[BlackElo "1083"]
[TimeControl "180+2"]
[EndTime "10:36:47 PDT"]
[Termination "Victoria de jasikevic por tiempo"]

1. e4 {[%clk 0:03:00.5]} 1... e5 {[%clk 0:02:57.8]} 2. Nf3 {[%clk 0:03:00.9]}
2... Nc6 {[%clk 0:02:47.2]} 3. Bb5 {[%clk 0:02:58.9]} 3... a6 {[%clk 0:02:43.9]}
4. Ba4 {[%clk 0:02:59.3]} 4... Nf6 {[%clk 0:02:39.2]} 5. O-O {[%clk 0:02:56.7]}
5... Nxe4 {[%clk 0:02:35.4]} 6. d4 {[%clk 0:02:56.5]} 6... exd4 {[%clk
0:02:29.5]} 7. Re1 {[%clk 0:02:17.6]} 7... d5 {[%clk 0:02:22.4]} 8. Nxd4 {[%clk
0:02:17.2]} 8... Bd7 {[%clk 0:02:18.5]} 9. Bxc6 {[%clk 0:02:04.5]} 9... Bxc6
{[%clk 0:02:09.3]} 10. f3 {[%clk 0:02:01.9]} 10... Bb4 {[%clk 0:01:48.6]} 11. c3
{[%clk 0:01:58.5]} 11... Bc5 {[%clk 0:01:44.4]} 12. fxe4 {[%clk 0:01:59]} 12...
Bxd4+ {[%clk 0:01:29]} 13. Qxd4 {[%clk 0:01:56.5]} 13... dxe4 {[%clk 0:01:28.7]}
14. Qxg7 {[%clk 0:01:49.7]} 14... Rf8 {[%clk 0:01:22.3]} 15. Bh6 {[%clk
0:01:49.9]} 15... Ke7 {[%clk 0:01:08.3]} 16. Bg5+ {[%clk 0:01:44.6]} 16... Kd7
{[%clk 0:00:35.6]} 17. Bxd8 {[%clk 0:01:41.9]} 17... Raxd8 {[%clk 0:00:29.9]}
18. Qd4+ {[%clk 0:01:39.4]} 18... Kc8 {[%clk 0:00:26]} 19. Qa7 {[%clk
0:01:39.4]} 19... Kd7 {[%clk 0:00:25]} 20. Nd2 {[%clk 0:01:34.7]} 20... Ra8
{[%clk 0:00:21.8]} 21. Qd4+ {[%clk 0:01:34.4]} 21... Kc8 {[%clk 0:00:22.2]} 22.
Nxe4 {[%clk 0:01:34.6]} 22... Rd8 {[%clk 0:00:21]} 23. Qf6 {[%clk 0:01:29.8]}
23... Bxe4 {[%clk 0:00:20.2]} 24. Rxe4 {[%clk 0:01:30.4]} 1

[Event "Open Nuevo Centro. Jornada 2"]
[Site "Chess.com"]
[Date "2020.06.26"]
[Round "1"]
[White "Kovacevic, Slobodan"]
[Black "Conejero Martínez, Víctor"]
[Result "1-0"]
[WhiteElo "2108"]
[BlackElo "1192"]
[TimeControl "180+2"]
[EndTime "10:36:48 PDT"]
[Termination "Victoria de nikko110 por abandono"]

1. d4 {[%clk 0:02:24.2]} 1... Nf6 {[%clk 0:02:55.1]} 2. Nf3 {[%clk 0:02:23.1]}
2... d5 {[%clk 0:02:52.9]} 3. Bf4 {[%clk 0:02:21.6]} 3... e6 {[%clk 0:02:52.8]}
4. Nbd2 {[%clk 0:02:20.5]} 4... Bd6 {[%clk 0:02:48]} 5. Ne5 {[%clk 0:02:19.3]}
5... Nbd7 {[%clk 0:02:45.2]} 6. e3 {[%clk 0:02:16.2]} 6... O-O {[%clk
0:02:45.1]} 7. Bd3 {[%clk 0:02:15.1]} 7... b6 {[%clk 0:02:40.9]} 8. c3 {[%clk
0:02:13.8]} 8... a5 {[%clk 0:02:39.7]} 9. Qe2 {[%clk 0:02:11.9]} 9... c5 {[%clk
0:02:28.6]} 10. Nxf7 {[%clk 0:02:09.5]} 10... Rxf7 {[%clk 0:02:24.4]} 11. Bxd6
{[%clk 0:02:08]} 11... c4 {[%clk 0:02:03.9]} 12. Bc2 {[%clk 0:02:06.1]} 12... b5
{[%clk 0:01:48.9]} 13. a3 {[%clk 0:02:04.4]} 13... Ra6 {[%clk 0:01:47.2]} 14.
Bg3 {[%clk 0:02:01.8]} 14... Ne8 {[%clk 0:01:20.8]} 15. O-O {[%clk 0:01:58.6]}
15... Qe7 {[%clk 0:01:10.8]} 16. f4 {[%clk 0:01:56.3]} 16... g5 {[%clk
0:01:05.8]} 17. Nf3 {[%clk 0:01:53.4]} 17... g4 {[%clk 0:00:57.4]} 18. Ne5
{[%clk 0:01:52]} 18... Nxe5 {[%clk 0:00:56.7]} 19. fxe5 {[%clk 0:01:50.8]} 19...
Ng7 {[%clk 0:00:48.6]} 20. Qxg4 {[%clk 0:01:48.1]} 20... Ra7 {[%clk 0:00:23.6]}
21. Rxf7 {[%clk 0:01:42.6]} 21... Qxf7 {[%clk 0:00:21.1]} 22. Bh4 {[%clk
0:01:40.3]} 22... Qf8 {[%clk 0:00:17.9]} 23. Bf6 {[%clk 0:01:38.6]} 23... Qf7
{[%clk 0:00:12.4]} 24. Rf1 {[%clk 0:01:35.3]} 24... Qd7 {[%clk 0:00:07.2]} 25.
Rf3 {[%clk 0:01:33.2]} 25... Qd8 {[%clk 0:00:06]} 26. Bxd8 {[%clk 0:01:31.1]}
1

[Event "Open Nuevo Centro. Jornada 2"]
[Site "Chess.com"]
[Date "2020.06.26"]
[Round "1"]
[White "Roca Cruz, Rafael"]
[Black "Valero Artagoitia, Sara"]
[Result "1-0"]
[WhiteElo "1717"]
[BlackElo "540"]
[TimeControl "180+2"]
[EndTime "10:36:48 PDT"]
[Termination "Victoria de RafaRocaCruz por jaque mate"]

1. d4 {[%clk 0:03:01.9]} 1... d5 {[%clk 0:02:58.7]} 2. c4 {[%clk 0:03:02.5]}
2... c5 {[%clk 0:02:57.4]} 3. e3 {[%clk 0:03:02.6]} 3... e6 {[%clk 0:02:55.5]}
4. Nc3 {[%clk 0:02:56.8]} 4... Nc6 {[%clk 0:02:50.9]} 5. Nf3 {[%clk 0:02:57]}
5... Nf6 {[%clk 0:02:48.7]} 6. a3 {[%clk 0:02:53.4]} 6... a6 {[%clk 0:02:45.5]}
7. dxc5 {[%clk 0:02:52.7]} 7... dxc4 {[%clk 0:02:42.2]} 8. Qxd8+ {[%clk
0:02:51.4]} 8... Nxd8 {[%clk 0:02:30]} 9. Bxc4 {[%clk 0:02:51.8]} 9... Bxc5
{[%clk 0:02:15.2]} 10. b4 {[%clk 0:02:52.7]} 10... Bd6 {[%clk 0:02:03.4]} 11.
Bb2 {[%clk 0:02:51.7]} 11... O-O {[%clk 0:01:57.7]} 12. O-O {[%clk 0:02:32.7]}
12... b5 {[%clk 0:01:56.3]} 13. Bb3 {[%clk 0:02:28.5]} 13... a5 {[%clk 0:01:33]}
14. Nxb5 {[%clk 0:02:26.2]} 14... Ne4 {[%clk 0:01:14.1]} 15. Nxd6 {[%clk
0:02:25.7]} 15... Nxd6 {[%clk 0:01:13.1]} 16. Rfd1 {[%clk 0:02:25.6]} 16... N8b7
{[%clk 0:01:05.7]} 17. Bc3 {[%clk 0:02:02.9]} 17... a4 {[%clk 0:00:47.7]} 18.
Ba2 {[%clk 0:02:03.8]} 18... Nc4 {[%clk 0:00:27.2]} 19. Bxc4 {[%clk 0:02:03.5]}
19... Nd6 {[%clk 0:00:17.7]} 20. Rxd6 {[%clk 0:02:03.1]} 20... Ra6 {[%clk
0:00:16.6]} 21. Bxa6 {[%clk 0:02:02.8]} 21... Bxa6 {[%clk 0:00:15]} 22. Rxa6
{[%clk 0:02:02.6]} 22... e5 {[%clk 0:00:15.2]} 23. Bxe5 {[%clk 0:01:58.5]} 23...
f6 {[%clk 0:00:14]} 24. Bd4 {[%clk 0:01:58.2]} 24... g5 {[%clk 0:00:11.6]} 25.
Rc1 {[%clk 0:01:58.1]} 25... h6 {[%clk 0:00:12.2]} 26. Rc7 {[%clk 0:01:58.6]}
26... g4 {[%clk 0:00:11.4]} 27. Nh4 {[%clk 0:01:57.4]} 27... Rd8 {[%clk
0:00:11.1]} 28. Raa7 {[%clk 0:01:57.3]} 28... h5 {[%clk 0:00:11.7]} 29. Rg7+
{[%clk 0:01:57.4]} 29... Kf8 {[%clk 0:00:08.3]} 30. Ng6+ {[%clk 0:01:55.1]}
30... Ke8 {[%clk 0:00:07.8]} 31. Rg8# {[%clk 0:01:56.2]} 1

[Event "Open Nuevo Centro. Jornada 2"]
[Site "Chess.com"]
[Date "2020.06.26"]
[Round "1"]
[White "Cebolla Ruiz, David"]
[Black "Clement Gómez, José Antonio"]
[Result "0-1"]
[WhiteElo "1576"]
[BlackElo "2483"]
[TimeControl "180+2"]
[EndTime "10:37:03 PDT"]
[Termination "Victoria de P4AD por jaque mate"]

1. e4 {[%clk 0:03:00.1]} 1... c5 {[%clk 0:03:00.5]} 2. Nf3 {[%clk 0:03:00.8]}
2... e6 {[%clk 0:03:01.8]} 3. d4 {[%clk 0:03:02]} 3... cxd4 {[%clk 0:03:03.7]}
4. Nxd4 {[%clk 0:03:03.2]} 4... Nc6 {[%clk 0:03:05.1]} 5. Be3 {[%clk 0:03:03.3]}
5... Nf6 {[%clk 0:03:03.4]} 6. f3 {[%clk 0:03:03.9]} 6... d5 {[%clk 0:03:00.7]}
7. Bd3 {[%clk 0:02:55.5]} 7... e5 {[%clk 0:02:56.3]} 8. Nxc6 {[%clk 0:02:50.4]}
8... bxc6 {[%clk 0:02:58.2]} 9. exd5 {[%clk 0:02:45]} 9... cxd5 {[%clk
0:03:00.1]} 10. Bb5+ {[%clk 0:02:32.9]} 10... Bd7 {[%clk 0:02:59.9]} 11. Bxd7+
{[%clk 0:02:27.4]} 11... Qxd7 {[%clk 0:03:01.8]} 12. Bg5 {[%clk 0:02:27.6]}
12... Be7 {[%clk 0:02:54.3]} 13. Nc3 {[%clk 0:02:25]} 13... d4 {[%clk
0:02:50.2]} 14. Bxf6 {[%clk 0:02:13.9]} 14... Bxf6 {[%clk 0:02:52.1]} 15. Ne4
{[%clk 0:02:14.4]} 15... Bh4+ {[%clk 0:02:44.8]} 16. g3 {[%clk 0:02:15]} 16...
Be7 {[%clk 0:02:46.3]} 17. Qd2 {[%clk 0:01:43.5]} 17... O-O {[%clk 0:02:42.9]}
18. O-O-O {[%clk 0:01:43.9]} 18... Rfc8 {[%clk 0:02:36.6]} 19. f4 {[%clk
0:01:36.9]} 19... Rab8 {[%clk 0:02:04.4]} 20. fxe5 {[%clk 0:01:21.9]} 20... Qd5
{[%clk 0:01:07.9]} 21. Nd6 {[%clk 0:00:15.9]} 21... Qxa2 {[%clk 0:00:58.5]} 22.
Qxd4 {[%clk 0:00:14.9]} 22... Bg5+ {[%clk 0:00:57]} 23. Rd2 {[%clk 0:00:13.5]}
23... Qa1# {[%clk 0:00:56.5]} 0

[Event "Open Nuevo Centro. Jornada 2"]
[Site "Chess.com"]
[Date "2020.06.26"]
[Round "1"]
[White "Gimeno Higueras, Roberto"]
[Black "Gálvez Torres, Guillermo"]
[Result "1-0"]
[WhiteElo "1984"]
[BlackElo "1071"]
[TimeControl "180+2"]
[EndTime "10:37:14 PDT"]
[Termination "Victoria de Chicogrande2 por tiempo"]

1. e4 {[%clk 0:03:01.6]} 1... c5 {[%clk 0:02:59.9]} 2. c3 {[%clk 0:03:02.2]}
2... d6 {[%clk 0:02:58.2]} 3. Nf3 {[%clk 0:03:01.8]} 3... Nc6 {[%clk 0:02:58.5]}
4. Bc4 {[%clk 0:03:01.2]} 4... Nf6 {[%clk 0:02:58.3]} 5. Qe2 {[%clk 0:03:02]}
5... g6 {[%clk 0:02:56]} 6. O-O {[%clk 0:03:02.6]} 6... Bg7 {[%clk 0:02:55.9]}
7. d3 {[%clk 0:03:02.8]} 7... O-O {[%clk 0:02:54.8]} 8. Bg5 {[%clk 0:03:02.6]}
8... Bg4 {[%clk 0:02:52.6]} 9. h3 {[%clk 0:02:54.5]} 9... Bxf3 {[%clk
0:02:48.2]} 10. Qxf3 {[%clk 0:02:55.9]} 10... Ne5 {[%clk 0:02:47.1]} 11. Qe2
{[%clk 0:02:56.5]} 11... Nxc4 {[%clk 0:02:46.1]} 12. dxc4 {[%clk 0:02:57.3]}
12... Qb6 {[%clk 0:02:42.8]} 13. Na3 {[%clk 0:02:48.4]} 13... Rfe8 {[%clk
0:02:34.9]} 14. f4 {[%clk 0:02:45.8]} 14... Qc6 {[%clk 0:02:34]} 15. Rae1 {[%clk
0:02:43.5]} 15... Rad8 {[%clk 0:02:26.4]} 16. Nc2 {[%clk 0:02:39]} 16... a6
{[%clk 0:02:16.1]} 17. e5 {[%clk 0:02:27.8]} 17... dxe5 {[%clk 0:02:11.7]} 18.
fxe5 {[%clk 0:02:27.7]} 18... Nd7 {[%clk 0:02:11.1]} 19. e6 {[%clk 0:02:10.1]}
19... fxe6 {[%clk 0:02:01.3]} 20. Qxe6+ {[%clk 0:02:09.4]} 20... Qxe6 {[%clk
0:01:57.5]} 21. Rxe6 {[%clk 0:02:09.9]} 21... Nf6 {[%clk 0:01:45.2]} 22. Rfe1
{[%clk 0:01:46.3]} 22... Kf7 {[%clk 0:01:28.8]} 23. Rb6 {[%clk 0:01:41.4]} 23...
Rd7 {[%clk 0:01:19.3]} 24. b4 {[%clk 0:01:41.4]} 24... cxb4 {[%clk 0:01:12.4]}
25. cxb4 {[%clk 0:01:41]} 25... Rc7 {[%clk 0:01:13]} 26. c5 {[%clk 0:01:12.9]}
1

[Event "Open Nuevo Centro. Jornada 2"]
[Site "Chess.com"]
[Date "2020.06.26"]
[Round "1"]
[White "Macias Pino, Diego"]
[Black "Montes Molina, Ivan"]
[Result "1-0"]
[WhiteElo "2193"]
[BlackElo "1233"]
[TimeControl "180+2"]
[EndTime "10:37:23 PDT"]
[Termination "Victoria de jesuimafe por jaque mate"]

1. e4 {[%clk 0:03:00.5]} 1... e6 {[%clk 0:02:57.8]} 2. d4 {[%clk 0:02:52.3]}
2... d5 {[%clk 0:02:57.9]} 3. Nd2 {[%clk 0:02:53]} 3... dxe4 {[%clk 0:02:54.8]}
4. Nxe4 {[%clk 0:02:54.5]} 4... Nf6 {[%clk 0:02:55.4]} 5. Nxf6+ {[%clk
0:02:51.5]} 5... Qxf6 {[%clk 0:02:54.6]} 6. Nf3 {[%clk 0:02:52.4]} 6... h6
{[%clk 0:02:55]} 7. Bd3 {[%clk 0:02:52.6]} 7... Nc6 {[%clk 0:02:51.3]} 8. O-O
{[%clk 0:02:49.9]} 8... Bd6 {[%clk 0:02:50.8]} 9. h3 {[%clk 0:02:44.9]} 9... O-O
{[%clk 0:02:50.4]} 10. c3 {[%clk 0:02:42.8]} 10... Bd7 {[%clk 0:02:33.3]} 11.
Bc2 {[%clk 0:02:43.4]} 11... Rfe8 {[%clk 0:02:20.3]} 12. Qd3 {[%clk 0:02:43.4]}
12... Rad8 {[%clk 0:02:13.2]} 13. Re1 {[%clk 0:02:39.1]} 13... Kf8 {[%clk
0:02:02.2]} 14. Qh7 {[%clk 0:02:30.5]} 14... a6 {[%clk 0:01:49.8]} 15. h4 {[%clk
0:02:20.8]} 15... Ke7 {[%clk 0:01:47.4]} 16. d5 {[%clk 0:02:18.3]} 16... Ne5
{[%clk 0:01:19.7]} 17. Nxe5 {[%clk 0:02:11.1]} 17... Bxe5 {[%clk 0:01:18.6]} 18.
Qe4 {[%clk 0:02:12.1]} 18... Bd6 {[%clk 0:01:10]} 19. Be3 {[%clk 0:01:53.2]}
19... Kf8 {[%clk 0:01:02.6]} 20. g3 {[%clk 0:01:33]} 20... exd5 {[%clk
0:00:56.1]} 21. Qh7 {[%clk 0:01:33.9]} 21... Re6 {[%clk 0:00:32.8]} 22. Bd4
{[%clk 0:01:20.4]} 22... Qf3 {[%clk 0:00:24.4]} 23. Bxg7+ {[%clk 0:01:06.1]}
23... Ke7 {[%clk 0:00:21.8]} 24. Bxh6 {[%clk 0:01:04.5]} 24... Bc6 {[%clk
0:00:21]} 25. Bg5+ {[%clk 0:00:58.3]} 25... Kd7 {[%clk 0:00:19.8]} 26. Rxe6
{[%clk 0:00:56.6]} 26... Kxe6 {[%clk 0:00:20.4]} 27. Re1+ {[%clk 0:00:55.8]}
27... Kd7 {[%clk 0:00:20.7]} 28. Bxd8 {[%clk 0:00:56.7]} 28... Kxd8 {[%clk
0:00:21.6]} 29. Qg8+ {[%clk 0:00:54.3]} 29... Kd7 {[%clk 0:00:21.1]} 30. Qe8#
{[%clk 0:00:55.2]} 1